bitfinex/quotes_BTCUSD_20241028
["timestamp","ask_amount","ask_price","bid_price","bid_amount"]
[1730109664473,0.145766,68603.0,68602.0,0.43731]
[1730109664781,0.02283801,68606.0,68605.0,0.145761]
[1730109665007,0.02283801,68606.0,68605.0,0.583051]
[1730109665903,0.02283801,68606.0,68605.0,0.59264071]
[1730109666123,0.02383801,68606.0,68605.0,0.59264071]
[1730109667469,0.02383801,68606.0,68605.0,0.44687971]
[1730109667712,0.17059701,68606.0,68605.0,0.44229]
[1730109667933,0.17059701,68606.0,68605.0,0.44687709]
[1730109668169,0.16959701,68606.0,68605.0,0.44687709]
[1730109668385,0.02383801,68606.0,68605.0,0.44529]
[1730109668602,0.02383801,68606.0,68605.0,0.591051]
[1730109669274,0.02383801,68606.0,68605.0,1.45529]
[1730109669775,0.02383801,68606.0,68605.0,1.601051]
[1730109670229,0.02383801,68606.0,68605.0,1.45829]
[1730109670462,0.16959701,68606.0,68605.0,1.45829]
[1730109670907,0.02383801,68606.0,68605.0,1.45829]
[1730109671447,0.32398577,68606.0,68605.0,1.45329]
[1730109672139,0.32398577,68606.0,68605.0,1.45029]
[1730109672403,0.32010082,68606.0,68605.0,1.45529]
[1730109672841,0.16959701,68606.0,68605.0,1.45529]
[1730109673518,0.16859701,68606.0,68605.0,1.45429]
[1730109673701,0.16859701,68606.0,68605.0,1.44929]
[1730109674188,0.32298577,68606.0,68605.0,1.44729]
[1730109674413,0.42298577,68606.0,68605.0,1.44829]
[1730109674656,0.44798577,68606.0,68605.0,1.44829]
[1730109674942,0.44598577,68606.0,68605.0,1.44729]
[1730109675208,0.44598577,68606.0,68605.0,1.44829]
[1730109675419,0.44698577,68606.0,68605.0,1.44729]
[1730109675664,0.58887752,68606.0,68605.0,1.44729]
[1730109675896,0.65431778,68606.0,68605.0,1.44729]
[1730109676128,0.63147977,68606.0,68605.0,1.44729]
[1730109676348,0.56603951,68606.0,68605.0,1.44729]
[1730109676576,0.56503951,68606.0,68605.0,1.44729]
[1730109676816,0.57003951,68606.0,68605.0,1.44729]
[1730109677041,0.58348229,68606.0,68605.0,1.44829]
[1730109677264,0.45459054,68606.0,68605.0,1.44929]
[1730109677561,0.43614776,68606.0,68605.0,1.44829]
[1730109677792,0.71877975,68606.0,68605.0,1.44929]
[1730109678021,0.57514776,68606.0,68605.0,1.44929]
[1730109678477,0.32514776,68606.0,68605.0,1.44929]
[1730109679602,0.42514776,68606.0,68605.0,1.44929]
[1730109680973,0.57565157,68606.0,68605.0,1.44929]
[1730109681412,0.42514776,68606.0,68605.0,1.44929]
[1730109684570,0.32514776,68606.0,68605.0,1.44929]
[1730109685344,0.025,68606.0,68605.0,1.44929]
[1730109685756,0.025,68606.0,68605.0,1.853851]
[1730109685993,0.025,68606.0,68605.0,1.85844441]
[1730109686220,0.000823,68608.0,68605.0,1.85644436]
[1730109686457,0.14658,68608.0,68606.0,0.00459336]
[1730109686693,0.000823,68608.0,68607.0,0.44186336]
[1730109686931,0.000823,68608.0,68607.0,0.59262036]
[1730109687157,0.000823,68608.0,68607.0,0.44686336]
[1730109687391,0.000823,68608.0,68607.0,0.59262036]
[1730109687631,0.000823,68608.0,68607.0,0.5926201]
[1730109688582,0.000823,68608.0,68607.0,0.59996942]
[1730109689263,0.02365928,68608.0,68607.0,0.59996942]
[1730109689494,0.02465928,68608.0,68607.0,0.59996889]
[1730109689932,0.02565928,68608.0,68607.0,0.59996889]
[1730109690414,0.02565928,68608.0,68607.0,0.64996889]
[1730109690844,0.02147287,68608.0,68607.0,0.64996889]
[1730109691304,0.02247287,68608.0,68607.0,0.65996889]
[1730109692460,0.02247287,68608.0,68607.0,0.65261962]
[1730109697076,0.02247287,68608.0,68607.0,0.65261713]
[1730109697531,0.02247287,68608.0,68607.0,0.66496322]
[1730109697751,0.001,68608.0,68607.0,0.91706322]
[1730109699120,0.001,68608.0,68607.0,0.896605]
[1730109699802,0.001,68608.0,68607.0,0.898251]
[1730109700019,0.001823,68608.0,68607.0,0.898251]
[1730109700453,0.001823,68608.0,68607.0,0.88631478]
[1730109700718,0.001823,68608.0,68607.0,0.89824482]
[1730109707909,0.001823,68608.0,68607.0,0.89824931]
[1730109710149,0.001823,68608.0,68607.0,0.90743562]
[1730109711006,0.147578,68608.0,68607.0,0.49957862]
[1730109711244,0.43819044,68608.0,68607.0,0.49039231]
[1730109711463,0.29808181,68608.0,68607.0,0.48304757]
[1730109711687,0.29808181,68608.0,68607.0,0.47845778]
[1730109711895,0.29708181,68608.0,68607.0,0.47345778]
[1730109712339,0.29708181,68608.0,68607.0,0.46945778]
[1730109712580,0.29708181,68608.0,68607.0,0.46845778]
[1730109713003,0.29808181,68608.0,68607.0,0.46845778]
[1730109713501,0.30008181,68608.0,68607.0,0.46945778]
[1730109713683,0.30008181,68608.0,68607.0,0.474053]
[1730109713905,0.003823,68608.0,68607.0,0.473053]
[1730109714803,0.000823,68608.0,68607.0,0.473053]
[1730109715033,0.002823,68608.0,68607.0,0.473053]
[1730109715229,0.004823,68608.0,68607.0,0.473053]
[1730109715671,0.004823,68608.0,68607.0,0.478053]
[1730109716154,0.006823,68608.0,68607.0,0.48540916]
[1730109716409,0.000823,68608.0,68607.0,0.48540916]
[1730109716637,0.000823,68608.0,68607.0,0.48640916]
[1730109716866,0.000823,68608.0,68607.0,0.48740916]
[1730109717949,0.000823,68608.0,68607.0,0.480053]
[1730109718169,0.000823,68608.0,68607.0,0.475053]
[1730109718386,0.146578,68608.0,68607.0,0.475053]
[1730109719297,0.000823,68608.0,68607.0,0.727053]
[1730109719521,0.000823,68608.0,68607.0,0.643353]
[1730109719734,0.146578,68608.0,68607.0,0.473053]
[1730109719954,0.147578,68608.0,68607.0,0.473053]
[1730109720409,0.148578,68608.0,68607.0,0.473053]
[1730109721264,0.002823,68608.0,68607.0,0.473053]
[1730109721492,0.002823,68608.0,68607.0,0.47305457]
[1730109721715,0.002823,68608.0,68607.0,0.47805457]
[1730109721949,0.002823,68608.0,68607.0,0.62992662]
[1730109722166,0.002823,68608.0,68607.0,0.88692662]
[1730109722372,0.002823,68608.0,68607.0,0.90347677]
[1730109723289,0.001823,68608.0,68607.0,0.90347677]
[1730109723717,0.002823,68608.0,68607.0,0.91347677]
[1730109724212,0.002823,68608.0,68607.0,1.08529758]
[1730109724441,0.002823,68608.0,68607.0,0.91347677]
[1730109724663,0.001823,68608.0,68607.0,0.91347677]
[1730109724876,0.001823,68608.0,68607.0,0.89232983]
[1730109725088,0.002823,68608.0,68607.0,0.92147158]
[1730109725510,0.002823,68608.0,68607.0,0.9291342]
[1730109726792,0.002823,68608.0,68607.0,0.92147158]
[1730109729384,0.002823,68608.0,68607.0,1.09329239]
[1730109732280,0.002823,68608.0,68607.0,1.09328351]
[1730109735946,0.002823,68608.0,68607.0,1.07715064]
[1730109736200,0.002823,68608.0,68607.0,1.09828084]
[1730109736902,0.002823,68608.0,68607.0,0.92646003]
[1730109737123,0.002823,68608.0,68607.0,1.09828084]
[1730109739460,0.002823,68608.0,68607.0,1.08909274]
[1730109739678,0.002823,68608.0,68607.0,1.07715064]
[1730109739924,0.002823,68608.0,68607.0,1.08909264]
[1730109740386,0.002823,68608.0,68607.0,0.50839978]
[1730109740672,0.148578,68608.0,68607.0,0.50105044]
[1730109740886,0.148578,68608.0,68607.0,0.49145778]
[1730109741383,0.148578,68608.0,68607.0,0.48645778]
[1730109741612,0.147578,68608.0,68607.0,0.48605108]
[1730109741850,0.146578,68608.0,68607.0,0.47345778]
[1730109742122,0.146578,68608.0,68607.0,0.47745778]
[1730109742370,0.000823,68608.0,68607.0,0.48145778]
[1730109742603,0.000823,68608.0,68607.0,0.47805151]
[1730109742845,0.000823,68608.0,68607.0,0.62380851]
[1730109743073,0.000823,68608.0,68607.0,0.47805151]
[1730109743521,0.000823,68608.0,68607.0,0.47345778]
[1730109743765,0.000823,68608.0,68607.0,0.47805192]
[1730109743985,0.146578,68608.0,68607.0,0.47805192]
[1730109744448,0.000823,68608.0,68607.0,0.47805192]
[1730109745154,0.000823,68608.0,68607.0,0.48005192]
[1730109745373,0.146578,68608.0,68607.0,0.48005158]
[1730109745807,0.146578,68608.0,68607.0,0.48205158]
[1730109748430,0.37976676,68608.0,68607.0,0.47545778]
[1730109748671,0.37976676,68608.0,68607.0,0.47345778]
[1730109748914,0.37976676,68608.0,68607.0,0.46845778]
[1730109749401,0.37976676,68608.0,68607.0,0.47345778]
[1730109749671,0.38176676,68608.0,68607.0,0.47345778]
[1730109749909,0.38276676,68608.0,68607.0,0.47345778]
[1730109750579,0.37976676,68608.0,68607.0,0.47345778]
[1730109751951,0.38276676,68608.0,68607.0,0.47345778]
[1730109752192,0.38476676,68608.0,68607.0,0.47345778]
[1730109756359,0.38476676,68608.0,68607.0,0.46845778]
[1730109756576,0.38476676,68608.0,68607.0,0.47345778]
[1730109761275,0.38476676,68608.0,68607.0,0.46615778]
[1730109763516,0.15632681,68608.0,68607.0,0.46615778]
[1730109763756,0.15632681,68608.0,68607.0,0.61191478]
[1730109763757,0.005823,68608.0,68607.0,0.61191478]
[1730109763983,0.005823,68608.0,68607.0,0.61691478]
[1730109764255,0.005823,68608.0,68607.0,0.62150685]
[1730109764468,0.005823,68608.0,68607.0,0.62885617]
[1730109764696,0.003823,68608.0,68607.0,0.63970695]
[1730109764919,0.003823,68608.0,68607.0,0.64070695]
[1730109765653,0.003823,68608.0,68607.0,0.897922]
[1730109766100,0.003823,68608.0,68607.0,0.896922]
[1730109766320,0.001823,68608.0,68607.0,0.904922]
[1730109766565,0.001823,68608.0,68607.0,1.06563236]
[1730109766792,0.001823,68608.0,68607.0,1.07748862]
[1730109767019,0.001823,68608.0,68607.0,2.08748862]
[1730109767239,0.001823,68608.0,68607.0,2.08648862]
[1730109767459,0.001823,68608.0,68607.0,2.09448862]
[1730109767688,0.001823,68608.0,68607.0,2.07563551]
[1730109768002,0.001823,68608.0,68607.0,2.08648885]
[1730109768214,0.002823,68608.0,68607.0,1.92592771]
[1730109768429,0.002823,68608.0,68607.0,1.92481266]
[1730109768648,0.002823,68608.0,68607.0,1.83881266]
[1730109768863,0.002823,68608.0,68607.0,1.66871266]
[1730109769073,0.002823,68608.0,68607.0,1.64550842]
[1730109769549,0.002823,68608.0,68607.0,1.49975142]
[1730109770240,0.002823,68608.0,68607.0,1.49515778]
[1730109770451,0.148578,68608.0,68607.0,1.49515778]
[1730109770689,0.37928181,68608.0,68607.0,1.49015778]
[1730109771352,0.37928181,68608.0,68607.0,1.49515778]
[1730109772181,0.37928181,68608.0,68607.0,1.48415778]
[1730109772182,0.37828181,68608.0,68607.0,1.48415778]
[1730109772401,0.37828181,68608.0,68607.0,1.48715778]
[1730109772834,0.37928181,68608.0,68607.0,1.49415778]
[1730109773518,0.147578,68608.0,68607.0,1.48715778]
[1730109773757,0.147578,68608.0,68607.0,1.47615778]
[1730109773758,0.000823,68608.0,68607.0,1.47615778]
[1730109774230,0.146578,68608.0,68607.0,1.47615778]
[1730109774442,0.146578,68608.0,68607.0,1.47815778]
[1730109775094,0.146578,68608.0,68607.0,1.47615778]
[1730109775527,0.001823,68608.0,68607.0,1.47915778]
[1730109775764,0.001823,68608.0,68607.0,1.62991478]
[1730109775970,0.001823,68608.0,68607.0,1.63451005]
[1730109776423,0.001823,68608.0,68607.0,1.6376251]
[1730109776642,0.001823,68608.0,68607.0,1.72077796]
[1730109776878,0.001823,68608.0,68607.0,1.89723446]
[1730109777344,0.001823,68608.0,68607.0,1.89423446]
[1730109777787,0.001823,68608.0,68607.0,1.89723446]
[1730109778208,0.001823,68608.0,68607.0,1.89423446]
[1730109778420,0.001823,68608.0,68607.0,1.90342484]
[1730109778644,0.001823,68608.0,68607.0,2.08498598]
[1730109778872,0.001823,68608.0,68607.0,2.25285089]
[1730109779093,0.001823,68608.0,68607.0,2.26485089]
[1730109779094,0.002823,68608.0,68607.0,2.26485089]
[1730109779313,0.002823,68608.0,68607.0,2.27251434]
[1730109779747,0.001823,68608.0,68607.0,2.26551434]
[1730109779955,0.000823,68608.0,68607.0,2.25851434]
[1730109780174,0.001823,68608.0,68607.0,2.26851434]
[1730109780400,0.001823,68608.0,68607.0,2.26385089]
[1730109780924,0.000823,68608.0,68607.0,2.20149478]
[1730109781167,0.001823,68608.0,68607.0,2.26482615]
[1730109781643,0.001823,68608.0,68607.0,2.39422374]
[1730109781644,0.000823,68608.0,68607.0,2.39422374]
[1730109781882,0.000823,68608.0,68607.0,2.53462548]
[1730109782129,0.002823,68608.0,68607.0,2.57962548]
[1730109782355,0.001823,68608.0,68607.0,2.57662548]
[1730109782803,0.001823,68608.0,68607.0,2.66334079]
[1730109783037,0.41703072,68610.0,68609.0,0.17386805]
[1730109783301,0.43931355,68618.0,68617.0,0.57371219]
[1730109783536,0.43931355,68618.0,68617.0,1.06147028]
[1730109783748,0.43931355,68618.0,68617.0,1.06144932]
[1730109783978,0.43931355,68618.0,68617.0,1.21695313]
[1730109784224,0.43931355,68618.0,68617.0,1.39051427]
[1730109784484,0.43931355,68618.0,68617.0,1.23627016]
[1730109784720,0.44031355,68618.0,68617.0,1.24927016]
[1730109785188,0.43931355,68618.0,68617.0,1.26427016]
[1730109785409,0.28736801,68618.0,68617.0,1.4358313]
[1730109785645,0.02906801,68618.0,68617.0,1.5358313]
[1730109786557,0.00480191,68632.0,68631.0,0.44758219]
[1730109786806,0.00480191,68632.0,68631.0,0.79535313]
[1730109787067,0.00480191,68632.0,68631.0,1.26023313]
[1730109787315,0.00480191,68632.0,68631.0,1.24938521]
[1730109787564,0.00480191,68632.0,68631.0,1.26018397]
[1730109787794,0.00480191,68632.0,68631.0,1.08859039]
[1730109788269,0.00580191,68632.0,68631.0,1.10259039]
[1730109788492,0.00580191,68632.0,68631.0,1.10459039]
[1730109788723,0.00480191,68632.0,68631.0,1.08859039]
[1730109788947,0.00580191,68632.0,68631.0,1.09659039]
[1730109789175,0.00580191,68632.0,68631.0,1.11259039]
[1730109789176,0.00680191,68632.0,68631.0,1.11259039]
[1730109789399,0.00680191,68632.0,68631.0,1.10527504]
[1730109789876,0.00680191,68632.0,68631.0,1.11059039]
[1730109790111,0.00680191,68632.0,68631.0,0.91977123]
[1730109790335,0.00580191,68632.0,68631.0,1.05047628]
[1730109790589,0.00580191,68632.0,68631.0,1.06126116]
[1730109790827,0.00680191,68632.0,68631.0,1.08026116]
[1730109791059,0.00680191,68632.0,68631.0,1.07526116]
[1730109791294,0.00680191,68632.0,68631.0,0.80377628]
[1730109791759,0.00480191,68632.0,68631.0,0.63127247]
[1730109792238,0.00480191,68632.0,68628.0,0.291426]
[1730109792239,0.00680191,68632.0,68628.0,0.291426]
[1730109792470,0.00680191,68632.0,68631.0,0.145706]
[1730109793162,0.00762391,68632.0,68631.0,0.145706]
[1730109793404,0.00662391,68632.0,68631.0,0.582826]
[1730109793635,0.10662391,68632.0,68631.0,0.582826]
[1730109793866,0.10762391,68632.0,68631.0,0.582826]
[1730109794329,0.10662391,68632.0,68631.0,0.582826]
[1730109794857,0.10762391,68632.0,68631.0,0.45112]
[1730109795098,0.25332791,68632.0,68631.0,0.45112]
[1730109796013,0.33532791,68632.0,68631.0,0.45112]
[1730109796777,0.33432791,68632.0,68631.0,0.43712]
[1730109797032,0.48483172,68632.0,68631.0,0.43712]
[1730109797269,0.48583172,68632.0,68631.0,0.43712]
[1730109797498,0.48683172,68632.0,68631.0,0.43712]
[1730109797740,0.34012772,68632.0,68631.0,0.43712]
[1730109797972,0.19062391,68632.0,68631.0,0.43712]
[1730109798428,0.19562391,68632.0,68631.0,0.43712]
[1730109798901,0.19062391,68632.0,68631.0,0.43712]
[1730109799135,0.11262391,68632.0,68631.0,0.582826]
[1730109799595,0.11862391,68632.0,68631.0,0.582826]
[1730109800339,0.10562391,68632.0,68631.0,0.582826]
[1730109800804,0.10762391,68632.0,68631.0,0.582826]
[1730109801034,0.10662391,68632.0,68631.0,0.582826]
[1730109801254,0.10562391,68632.0,68631.0,0.582826]
[1730109801507,0.10662391,68632.0,68631.0,0.73332981]
[1730109802180,0.10562391,68632.0,68631.0,0.74063931]
[1730109802412,0.10662391,68632.0,68631.0,0.74063931]
[1730109802627,0.10562391,68632.0,68631.0,0.74063931]
[1730109802842,0.10662391,68632.0,68631.0,0.74063931]
[1730109803275,0.10662391,68632.0,68631.0,0.75142989]
[1730109803513,0.10762391,68632.0,68631.0,0.75342989]
[1730109803992,0.10662391,68632.0,68631.0,0.75142989]
[1730109804211,0.10762391,68632.0,68631.0,0.78813915]
[1730109804432,0.10862391,68632.0,68631.0,0.79013915]
[1730109805164,0.10762391,68632.0,68631.0,0.78813915]
[1730109805385,0.10662391,68632.0,68631.0,0.79016618]
[1730109805839,0.10762391,68632.0,68631.0,0.79016618]
[1730109806055,0.10662391,68632.0,68631.0,0.79016618]
[1730109806466,0.10762391,68632.0,68631.0,0.79016618]
[1730109808299,0.10762391,68632.0,68631.0,0.80745903]
[1730109809014,0.10762391,68632.0,68631.0,0.63395522]
[1730109809268,0.10762391,68632.0,68631.0,0.61666237]
[1730109809722,0.10662391,68632.0,68631.0,0.60751856]
[1730109809959,0.10562391,68632.0,68631.0,0.60551856]
[1730109810207,0.10662391,68632.0,68631.0,0.60551856]
[1730109810428,0.10762391,68632.0,68631.0,0.60651856]
[1730109810648,0.1073325,68632.0,68631.0,0.60651856]
[1730109810879,0.1063325,68632.0,68631.0,0.60551856]
[1730109811600,0.1073325,68632.0,68631.0,0.60651856]
[1730109811843,0.1083325,68632.0,68631.0,0.60651856]
[1730109812309,0.1083325,68632.0,68631.0,0.61568286]
[1730109812561,0.1083325,68632.0,68631.0,0.60651856]
[1730109812842,0.1083325,68632.0,68631.0,0.583826]
[1730109813059,0.1083325,68632.0,68631.0,0.60657271]
[1730109813736,0.0083325,68632.0,68631.0,0.60657271]
[1730109817688,0.0073325,68632.0,68631.0,0.60557271]
[1730109818090,0.0083325,68632.0,68631.0,0.60657271]
[1730109818347,0.0063325,68632.0,68631.0,0.60657271]
[1730109818516,0.0073325,68632.0,68631.0,0.60657271]
[1730109819168,0.0083325,68632.0,68631.0,0.46086671]
[1730109819335,0.2370365,68632.0,68631.0,0.46086671]
[1730109819576,0.2340365,68632.0,68631.0,0.4417011]
[1730109819783,0.4118365,68632.0,68631.0,0.4417011]
[1730109820207,0.4118365,68632.0,68631.0,0.4427011]
[1730109820208,0.4138365,68632.0,68631.0,0.4427011]
[1730109820657,0.4128365,68632.0,68631.0,0.44170344]
[1730109820863,0.2671325,68632.0,68631.0,0.44170344]
[1730109821068,0.2681325,68632.0,68631.0,0.44270344]
[1730109821320,0.2671325,68632.0,68631.0,0.44270344]
[1730109821758,0.2681325,68632.0,68631.0,0.44270344]
[1730109822322,0.3681325,68632.0,68631.0,0.44270344]
[1730109822746,0.3671325,68632.0,68631.0,0.44170344]
[1730109822984,0.3661325,68632.0,68631.0,0.44170344]
[1730109823224,0.3671325,68632.0,68631.0,0.44270344]
[1730109823436,0.1903325,68632.0,68631.0,0.44270321]
[1730109823653,0.1893325,68632.0,68631.0,0.44170321]
[1730109823875,0.1073325,68632.0,68631.0,0.80731541]
[1730109824113,0.1073325,68632.0,68631.0,0.583826]
[1730109824325,0.1073325,68632.0,68631.0,0.58840899]
[1730109824555,0.1073325,68632.0,68631.0,0.5884089]
[1730109828341,0.1073325,68632.0,68631.0,0.5900549]
[1730109831055,0.1073325,68632.0,68631.0,0.4443489]
[1730109831273,0.2530365,68632.0,68631.0,0.4443489]
[1730109831977,0.1073325,68632.0,68631.0,0.4443489]
[1730109832191,0.1073325,68632.0,68631.0,0.44434958]
[1730109832451,0.1053325,68632.0,68631.0,0.44334958]
[1730109832660,0.1053325,68632.0,68631.0,0.44434993]
[1730109832899,0.1063325,68632.0,68631.0,0.59005593]
[1730109833366,0.1053325,68632.0,68631.0,0.58905593]
[1730109833613,0.1053325,68632.0,68631.0,0.59005593]
[1730109835770,0.1053325,68632.0,68631.0,0.585472]
[1730109835980,0.1053325,68632.0,68631.0,0.59005734]
[1730109836209,0.1053325,68632.0,68631.0,0.60824183]
[1730109836455,0.1053325,68632.0,68631.0,0.77980297]
[1730109836664,0.1053325,68632.0,68631.0,0.95330678]
[1730109836895,0.1053325,68632.0,68631.0,0.96248015]
[1730109837145,0.1053325,68632.0,68631.0,0.97983286]
[1730109837576,0.1053325,68632.0,68631.0,1.98983286]
[1730109838553,0.1063325,68632.0,68631.0,1.98982706]
[1730109838800,0.1063325,68632.0,68631.0,1.98882706]
[1730109838993,0.1073325,68632.0,68631.0,1.99282706]
[1730109839218,0.1073325,68632.0,68631.0,2.00282706]
[1730109839455,0.1073325,68632.0,68631.0,2.08452706]
[1730109839678,0.1073325,68632.0,68631.0,2.12787489]
[1730109841040,0.1073325,68632.0,68631.0,1.86960166]
[1730109841266,0.1073325,68632.0,68631.0,1.82126592]
[1730109841497,0.1073325,68632.0,68631.0,2.00282706]
[1730109841735,0.1073325,68632.0,68631.0,2.0461628]
[1730109841984,0.1073325,68632.0,68631.0,1.99687269]
[1730109842229,0.1073325,68632.0,68631.0,2.0461422]
[1730109842446,0.1073325,68632.0,68631.0,2.1481422]
[1730109842688,0.1073325,68632.0,68631.0,2.51914514]
[1730109842917,0.1073325,68632.0,68631.0,2.51914629]
[1730109843153,0.1073325,68632.0,68631.0,2.46178632]
[1730109843446,0.1063325,68632.0,68631.0,2.45014268]
[1730109844104,0.1053325,68632.0,68631.0,2.45014268]
[1730109844270,0.1053325,68632.0,68631.0,2.51513023]
[1730109844500,0.1063325,68632.0,68631.0,2.52610661]
[1730109844653,0.1053325,68632.0,68631.0,2.51510661]
[1730109844851,0.1063325,68632.0,68631.0,2.35154547]
[1730109845085,0.1073325,68632.0,68631.0,2.36254547]
[1730109845311,0.1073325,68632.0,68631.0,2.19762924]
[1730109845519,0.1053325,68632.0,68631.0,2.10664532]
[1730109845735,0.1053325,68632.0,68631.0,2.11164532]
[1730109845975,0.1053325,68632.0,68631.0,2.13564532]
[1730109845976,0.1073325,68632.0,68631.0,2.13564532]
[1730109846429,0.1063325,68632.0,68631.0,2.12564532]
[1730109846661,0.1073325,68632.0,68631.0,2.14464532]
[1730109846868,0.1073325,68632.0,68631.0,2.14461163]
[1730109847093,0.1063325,68632.0,68631.0,2.13061163]
[1730109847346,0.1063325,68632.0,68631.0,2.17392701]
[1730109847564,0.1073325,68632.0,68631.0,2.18492701]
[1730109847794,0.1063325,68632.0,68631.0,2.17392701]
[1730109848025,0.1053325,68632.0,68631.0,2.15992701]
[1730109848258,0.1073325,68632.0,68631.0,2.18092701]
[1730109848476,0.1073325,68632.0,68631.0,1.8080232]
[1730109848718,0.1073325,68632.0,68631.0,1.73821657]
[1730109849184,0.1073325,68632.0,68631.0,1.75553329]
[1730109849428,0.1073325,68632.0,68631.0,1.87597581]
[1730109849655,0.1073325,68632.0,68631.0,1.92517334]
[1730109849900,0.1073325,68632.0,68631.0,1.96848872]
[1730109850576,0.1073325,68632.0,68631.0,1.94817334]
[1730109853840,0.1073325,68632.0,68631.0,1.94817851]
[1730109855169,0.1073325,68632.0,68631.0,1.95017851]
[1730109856974,0.1073325,68632.0,68631.0,1.94817851]
[1730109857203,0.1073325,68632.0,68631.0,1.91546076]
[1730109857498,0.1073325,68632.0,68631.0,1.94818573]
[1730109860483,0.1073325,68632.0,68631.0,2.06067099]
[1730109861131,0.1073325,68632.0,68631.0,2.0606895]
[1730109862704,0.1073325,68632.0,68631.0,2.0626895]
[1730109863181,0.1073325,68632.0,68631.0,2.0606895]
[1730109863410,0.1073325,68632.0,68631.0,2.0626895]
[1730109864094,0.1073325,68632.0,68631.0,2.10597629]
[1730109864515,0.1073325,68632.0,68631.0,2.10397629]
[1730109864748,0.1073325,68632.0,68631.0,2.01146107]
[1730109864959,0.1073325,68632.0,68631.0,2.06273949]
[1730109865414,0.1073325,68632.0,68631.0,2.06073949]
[1730109865862,0.1073325,68632.0,68631.0,2.09194949]
[1730109866070,0.1073325,68632.0,68631.0,2.06273949]
[1730109867553,0.1073325,68632.0,68631.0,2.07038469]
[1730109867786,0.1073325,68632.0,68631.0,2.11367148]
[1730109868004,0.1073325,68632.0,68631.0,2.06273949]
[1730109869084,0.1073325,68632.0,68631.0,2.10603502]
[1730109869287,0.1073325,68632.0,68631.0,2.11168948]
[1730109869538,0.1073325,68632.0,68631.0,2.06073949]
[1730109871464,0.1073325,68632.0,68631.0,2.71047743]
[1730109871677,0.000825,68644.0,68643.0,0.178681]
[1730109871893,0.000825,68644.0,68643.0,0.49094849]
[1730109872315,0.000825,68644.0,68643.0,0.92798849]
[1730109872551,0.000825,68644.0,68643.0,1.00648849]
[1730109873765,0.000825,68644.0,68643.0,1.02048849]
[1730109873976,0.000825,68644.0,68643.0,1.03448849]
[1730109874200,0.000825,68644.0,68643.0,1.02048849]
[1730109874421,0.000825,68644.0,68643.0,1.03448849]
[1730109875074,0.000825,68644.0,68643.0,0.95598849]
[1730109875517,0.000825,68644.0,68643.0,0.83350323]
[1730109875728,0.083125,68644.0,68643.0,0.83350323]
[1730109875939,0.083125,68644.0,68643.0,0.80531849]
[1730109876152,0.083125,68644.0,68643.0,0.83349511]
[1730109876387,0.000825,68644.0,68643.0,0.78422481]
[1730109876575,0.000825,68644.0,68643.0,0.84347978]
[1730109877263,0.000825,68644.0,68643.0,0.84547978]
[1730109877465,0.000825,68644.0,68643.0,0.84347978]
[1730109878553,0.000825,68644.0,68643.0,1.01480882]
[1730109879633,0.000825,68644.0,68643.0,1.05809782]
[1730109879857,0.000825,68644.0,68643.0,1.33707485]
[1730109880057,0.000825,68644.0,68643.0,1.29378585]
[1730109880276,0.000825,68644.0,68643.0,1.51853385]
[1730109880485,0.000825,68644.0,68643.0,1.45160035]
[1730109880939,0.000825,68644.0,68643.0,1.35673414]
[1730109881371,0.000825,68644.0,68643.0,1.29178585]
[1730109881581,0.000825,68644.0,68643.0,1.53821634]
[1730109881787,0.000825,68644.0,68643.0,1.51659603]
[1730109882206,0.000825,68644.0,68643.0,1.56186085]
[1730109882408,0.000825,68644.0,68643.0,1.45363834]
[1730109882611,0.000825,68644.0,68643.0,1.56182325]
[1730109883020,0.000825,68644.0,68643.0,1.55982325]
[1730109883468,0.000825,68644.0,68643.0,1.45922642]
[1730109883878,0.000825,68644.0,68643.0,1.46122642]
[1730109884289,0.000825,68644.0,68643.0,1.40436164]
[1730109884493,0.000825,68644.0,68643.0,1.46118976]
[1730109885596,0.000825,68644.0,68643.0,1.45918976]
[1730109885809,0.000825,68644.0,68643.0,1.53812475]
[1730109886053,0.000825,68644.0,68643.0,1.11474927]
[1730109886295,0.000825,68644.0,68643.0,1.15804077]
[1730109886529,0.000825,68644.0,68643.0,1.14888356]
[1730109887155,0.000825,68644.0,68643.0,1.14888257]
[1730109888474,0.000825,68644.0,68643.0,1.15803978]
[1730109888713,0.000825,68644.0,68643.0,1.14888257]
[1730109889148,0.000825,68644.0,68643.0,1.10559206]
[1730109891102,0.000825,68644.0,68643.0,0.82426302]
[1730109891364,0.259725,68644.0,68643.0,0.67375921]
[1730109891570,0.259725,68644.0,68643.0,0.65644459]
[1730109891980,0.259725,68644.0,68643.0,0.82777363]
[1730109892204,0.080925,68644.0,68643.0,0.81377363]
[1730109892670,0.080925,68644.0,68643.0,0.82777363]
[1730109893106,0.080925,68644.0,68643.0,0.81377363]
[1730109893321,0.080925,68644.0,68643.0,0.79977363]
[1730109893555,0.000825,68644.0,68643.0,0.82277363]
[1730109894187,0.000825,68644.0,68643.0,0.81177363]
[1730109894396,0.000825,68644.0,68643.0,0.79977363]
[1730109894604,0.000825,68644.0,68643.0,0.81377363]
[1730109895529,0.000825,68644.0,68643.0,0.82677363]
[1730109896418,0.000825,68644.0,68643.0,0.81377363]
[1730109896690,0.000825,68644.0,68643.0,0.82677363]
[1730109899126,0.000825,68644.0,68643.0,0.84413407]
[1730109899366,0.000825,68644.0,68643.0,0.83222013]
[1730109899570,0.000825,68644.0,68643.0,0.82680173]
[1730109900683,0.000825,68644.0,68643.0,0.63247269]
[1730109900914,0.000825,68644.0,68643.0,0.62513979]
[1730109900915,0.265425,68644.0,68643.0,0.62513979]
[1730109901132,0.265425,68644.0,68643.0,0.47945879]
[1730109901632,0.4176772,68644.0,68643.0,0.47946091]
[1730109902061,0.4176772,68644.0,68643.0,0.46404]
[1730109902293,0.4176772,68644.0,68643.0,0.45104]
[1730109902517,0.4176772,68644.0,68643.0,0.46404]
[1730109902747,0.4176772,68644.0,68643.0,0.45004]
[1730109902986,0.4176772,68644.0,68643.0,0.43704]
[1730109903213,0.57818101,68644.0,68643.0,0.45104]
[1730109903435,0.58018101,68644.0,68643.0,0.43704]
[1730109903947,0.58218101,68644.0,68643.0,0.43704]
[1730109904615,0.6946472,68644.0,68643.0,0.43704]
[1730109904833,0.6946472,68644.0,68643.0,0.05861361]
[1730109904834,0.8016472,68644.0,68643.0,0.05861361]
[1730109905059,0.8016472,68644.0,68631.0,0.2205522]
[1730109905060,0.404802,68633.0,68631.0,0.2205522]
[1730109905313,0.51726819,68633.0,68632.0,0.001696]
[1730109905540,0.52364734,68633.0,68632.0,0.001696]
[1730109905773,0.52364734,68633.0,68632.0,0.438806]